bitfinex/quotes_BTCUSD_20240821
["timestamp","ask_amount","ask_price","bid_price","bid_amount"]
[1724272718934,1.16524337,61330.0,61329.0,0.0239086]
[1724272719069,0.83913937,61330.0,61329.0,0.0239086]
[1724272719698,0.83813937,61330.0,61329.0,0.0129086]
[1724272719901,0.83713937,61330.0,61329.0,0.0009086]
[1724272720322,0.84013937,61330.0,61329.0,0.0009086]
[1724272720747,0.84313937,61330.0,61329.0,0.0009086]
[1724272723220,0.35398337,61330.0,61329.0,0.0009086]
[1724272724056,0.35098337,61330.0,61329.0,0.0009086]
[1724272725316,0.35398337,61330.0,61329.0,0.0009086]
[1724272725726,0.34798337,61330.0,61329.0,0.0009086]
[1724272725953,0.34798337,61330.0,61329.0,0.0029086]
[1724272726162,0.34798337,61330.0,61329.0,0.0039086]
[1724272733313,0.34798337,61330.0,61329.0,6.35929258]
[1724272733314,0.22627572,61330.0,61329.0,6.35929258]
[1724272733539,0.22627572,61330.0,61329.0,6.03318358]
[1724272733540,0.200714,61330.0,61329.0,6.03318358]
[1724272733675,0.1354,61330.0,61329.0,6.03318358]
[1724272734088,0.1354,61330.0,61329.0,6.04148282]
[1724272734284,0.1354,61330.0,61329.0,6.04048282]
[1724272734514,0.1354,61330.0,61329.0,6.03948282]
[1724272734688,0.1354,61330.0,61329.0,6.04148282]
[1724272734989,0.1354,61330.0,61329.0,6.03848282]
[1724272735280,0.1374,61330.0,61329.0,6.06548282]
[1724272736713,0.16296035,61330.0,61329.0,6.06548282]
[1724272736918,0.16296035,61330.0,61329.0,1.01548282]
[1724272737117,0.16296035,61330.0,61329.0,6.06548282]
[1724272738228,0.16296035,61330.0,61329.0,6.39159182]
[1724272738435,0.16296035,61330.0,61329.0,6.06548282]
[1724272738640,0.16296035,61330.0,61329.0,6.39159182]
[1724272738815,0.16296035,61330.0,61329.0,6.06548282]
[1724272739615,0.16296035,61330.0,61329.0,6.39159182]
[1724272740216,0.16296035,61330.0,61329.0,6.06548282]
[1724272740663,0.16296035,61330.0,61329.0,6.39159182]
[1724272740864,0.16296035,61330.0,61329.0,6.06548282]
[1724272741071,0.16296035,61330.0,61329.0,6.39159182]
[1724272741716,0.16296035,61330.0,61329.0,6.06548282]
[1724272742117,0.16296035,61330.0,61329.0,6.39159182]
[1724272742534,0.16296035,61330.0,61329.0,6.06548282]
[1724272742680,0.16296035,61330.0,61329.0,6.39159182]
[1724272742886,0.16296035,61330.0,61329.0,6.06548282]
[1724272743305,0.02756035,61330.0,61329.0,6.39159182]
[1724272743505,0.00060765,61346.0,61329.0,6.39159182]
[1724272743506,0.107426,61343.0,61341.0,0.163023]
[1724272743661,0.107426,61343.0,61341.0,0.589069]
[1724272743867,0.107426,61343.0,61341.0,0.915115]
[1724272744076,0.122026,61342.0,61341.0,0.915115]
[1724272744291,0.122026,61342.0,61341.0,5.422115]
[1724272744491,0.122026,61342.0,61341.0,4.517115]
[1724272744932,0.123026,61342.0,61341.0,4.524115]
[1724272745893,0.123026,61342.0,61341.0,4.808815]
[1724272746676,0.123026,61342.0,61341.0,3.795815]
[1724272746880,0.123026,61342.0,61341.0,2.044815]
[1724272748607,0.123026,61342.0,61341.0,5.292815]
[1724272748908,0.123026,61342.0,61341.0,5.899815]
[1724272749322,0.123026,61342.0,61341.0,5.460815]
[1724272749522,0.123026,61342.0,61341.0,5.105815]
[1724272750397,0.12263358,61342.0,61341.0,5.105815]
[1724272751725,0.12263358,61342.0,61341.0,5.26981798]
[1724272755151,0.12263358,61342.0,61341.0,5.23481798]
[1724272755310,0.14819087,61342.0,61341.0,5.05081798]
[1724272755547,0.14819087,61342.0,61341.0,4.95781798]
[1724272756303,0.14819087,61342.0,61341.0,4.74281798]
[1724272756553,0.14819087,61342.0,61341.0,4.50281798]
[1724272757770,0.14819087,61342.0,61341.0,4.21811798]
[1724272757973,0.73755852,61342.0,61341.0,0.013]
[1724272758179,1.23780397,61342.0,61341.0,0.013]
[1724272758381,0.00060765,61330.0,61329.0,0.0009086]
[1724272758609,0.22608452,61330.0,61329.0,0.0009086]
[1724272759106,0.26870196,61330.0,61329.0,0.0009086]
[1724272759706,0.26462509,61330.0,61329.0,0.0009086]
[1724272760377,0.26462509,61330.0,61329.0,0.0069086]
[1724272760809,0.26462509,61330.0,61329.0,0.0139086]
[1724272761015,0.26870201,61330.0,61329.0,0.0139086]
[1724272761181,0.75785801,61330.0,61329.0,0.0139086]
[1724272761382,1.08396201,61330.0,61329.0,0.0139086]
[1724272762276,1.08396201,61330.0,61329.0,0.0009086]
[1724272762478,1.08396201,61330.0,61320.0,0.0009086]
[1724272762479,0.00060765,61321.0,61320.0,0.0009086]
[1724272762653,0.38998365,61321.0,61320.0,0.0009086]
[1724272763305,1.06785658,61321.0,61320.0,0.0009086]
[1724272763508,0.74170458,61321.0,61320.0,0.0009086]
[1724272763708,0.74170458,61321.0,61320.0,0.0059086]
[1724272764468,0.74270458,61321.0,61320.0,0.0119086]
[1724272764673,0.74170458,61321.0,61320.0,0.0059086]
[1724272764876,0.25247658,61321.0,61320.0,0.0059086]
[1724272765085,0.25947658,61321.0,61320.0,0.0069086]
[1724272765294,0.25247658,61321.0,61320.0,0.0009086]
[1724272765488,0.25247658,61321.0,61320.0,0.0019086]
[1724272765687,0.26047658,61321.0,61320.0,0.0019086]
[1724272765897,0.26047658,61321.0,61320.0,0.0009086]
[1724272766099,0.25947658,61321.0,61320.0,0.0009086]
[1724272766520,0.26547658,61321.0,61320.0,0.0019086]
[1724272766865,0.25947658,61321.0,61320.0,0.0009086]
[1724272767276,0.43263021,61321.0,61320.0,0.0019086]
[1724272767426,0.42563021,61321.0,61320.0,0.0019086]
[1724272767631,0.43163021,61321.0,61320.0,0.0009086]
[1724272767832,0.76278221,61321.0,61320.0,0.0009086]
[1724272768584,0.75178221,61321.0,61320.0,0.0009086]
[1724272768966,0.75078221,61321.0,61320.0,0.0009086]
[1724272769166,0.25747658,61321.0,61320.0,0.0009086]
[1724272769372,0.26347658,61321.0,61320.0,0.0019086]
[1724272769575,0.75270458,61321.0,61320.0,0.0019086]
[1724272770302,0.74670458,61321.0,61320.0,0.0009086]
[1724272770813,0.42655258,61321.0,61320.0,0.0009086]
[1724272771024,0.42155258,61321.0,61320.0,0.0009086]
[1724272771238,0.42655258,61321.0,61320.0,0.0009086]
[1724272771720,0.22600765,61310.0,61309.0,0.009075]
[1724272772423,0.25157984,61310.0,61309.0,0.009075]
[1724272772874,0.25157984,61310.0,61309.0,0.015075]
[1724272773418,0.31691684,61310.0,61309.0,0.015075]
[1724272774351,0.3339698,61310.0,61309.0,0.015075]
[1724272774773,0.3349698,61310.0,61309.0,0.022075]
[1724272779226,0.33436215,61310.0,61309.0,0.022075]
[1724272779453,0.3349698,61310.0,61309.0,0.022075]
[1724272780204,0.33904801,61310.0,61309.0,0.022075]
[1724272782116,0.33404801,61310.0,61309.0,0.022075]
[1724272783436,1.96599999,61310.0,61309.0,0.022075]
[1724272783637,1.74378899,61310.0,61309.0,0.022075]
[1724272783862,2.10320889,61310.0,61309.0,0.022075]
[1724272784101,0.58724265,61295.0,61290.0,0.009086]
[1724272784340,0.91353265,61295.0,61290.0,0.009086]
[1724272784602,0.58724265,61295.0,61290.0,0.009086]
[1724272784861,0.93911208,61295.0,61290.0,0.009086]
[1724272785367,0.74122208,61295.0,61294.0,0.011086]
[1724272785656,0.25178708,61295.0,61294.0,0.012086]
[1724272785902,0.15397943,61295.0,61294.0,0.012086]
[1724272786232,0.15458708,61295.0,61294.0,0.012086]
[1724272789404,0.15458708,61295.0,61283.0,0.159479]
[1724272789405,0.00060765,61292.0,61283.0,0.159479]
[1724272789606,0.1222,61291.0,61285.0,0.16317]
[1724272789829,0.1002,61290.0,61286.0,2.13100298]
[1724272789944,0.1222,61289.0,61286.0,0.16400298]
[1724272790151,0.1002,61290.0,61280.0,0.0009086]
[1724272790152,0.00060765,61281.0,61280.0,0.0009086]
[1724272790363,0.22300765,61281.0,61280.0,0.0009086]
[1724272790574,0.22708753,61281.0,61280.0,0.0009086]
[1724272790794,0.25267084,61281.0,61280.0,0.0009086]
[1724272791715,0.24859096,61281.0,61280.0,0.0009086]
[1724272791916,0.25059096,61281.0,61280.0,0.0119086]
[1724272795002,0.14978331,61281.0,61280.0,0.0119086]
[1724272796016,0.15039096,61281.0,61280.0,0.0119086]
[1724272797994,0.14978331,61281.0,61280.0,0.0119086]
[1724272798200,0.14978331,61281.0,61280.0,5.71546658]
[1724272798406,0.002,61281.0,61280.0,6.36820658]
[1724272799288,0.002,61281.0,61280.0,6.69457658]
[1724272799498,0.01705296,61295.0,61293.0,0.326301]
[1724272799666,0.01705296,61295.0,61294.0,6.31444298]
[1724272799871,0.01705296,61295.0,61294.0,6.74073898]
[1724272800068,0.01705296,61295.0,61294.0,7.06703498]
[1724272800766,0.01705296,61295.0,61294.0,7.07803498]
[1724272800968,0.01805296,61295.0,61294.0,7.07803498]
[1724272801149,0.01805296,61295.0,61294.0,7.06703498]
[1724272801150,0.01705296,61295.0,61294.0,7.06703498]
[1724272801351,0.01705296,61295.0,61294.0,7.08103498]
[1724272801554,0.01905296,61295.0,61294.0,7.09503498]
[1724272801789,0.01805296,61295.0,61294.0,7.08103498]
[1724272802195,0.1285,61310.0,61309.0,0.81554]
[1724272802391,0.1285,61310.0,61309.0,1.26424298]
[1724272802593,0.1285,61310.0,61309.0,1.69045898]
[1724272803169,0.1285,61310.0,61309.0,6.74045898]
[1724272803796,0.1295,61310.0,61309.0,6.75445898]
[1724272804237,0.1295,61310.0,61309.0,6.76745898]
[1724272804238,0.1305,61310.0,61309.0,6.76745898]
[1724272804991,0.002,61310.0,61309.0,6.77545327]
[1724272805430,0.02757123,61310.0,61309.0,6.77545327]
[1724272806348,0.02757123,61310.0,61309.0,7.10166927]
[1724272806548,0.02757123,61310.0,61309.0,7.13566927]
[1724272806735,0.1258,61319.0,61318.0,1.141588]
[1724272806936,0.1258,61319.0,61318.0,1.69029098]
[1724272807366,0.1258,61319.0,61318.0,7.06645898]
[1724272807822,0.000826,61321.0,61320.0,1.669706]
[1724272807995,0.01705296,61327.0,61326.0,0.773887]
[1724272808167,0.01705296,61327.0,61326.0,1.69013998]
[1724272808369,0.01705296,61327.0,61326.0,7.06626498]
[1724272808569,0.01705296,61327.0,61326.0,6.99826498]
[1724272809204,0.24805296,61327.0,61326.0,1.593312]
[1724272809605,0.24805296,61327.0,61326.0,1.493312]
[1724272810503,0.24805296,61327.0,61326.0,1.501312]
[1724272810874,0.24805296,61327.0,61326.0,0.833312]
[1724272810991,0.24805296,61327.0,61326.0,0.01]
[1724272810992,0.24866061,61327.0,61326.0,0.01]
[1724272811190,0.41172061,61327.0,61326.0,0.01]
[1724272811481,0.39466765,61327.0,61326.0,0.01]
[1724272811663,0.23010765,61313.0,61312.0,0.163099]
[1724272812074,0.23010765,61313.0,61312.0,0.489299]
[1724272812626,0.1276,61313.0,61312.0,1.30570198]
[1724272812826,0.1276,61313.0,61312.0,6.35570198]
[1724272813236,0.1276,61313.0,61312.0,6.68190198]
[1724272813661,0.1276,61313.0,61312.0,6.78190198]
[1724272814081,0.1276,61313.0,61312.0,6.79590198]
[1724272814485,0.10250765,61328.0,61327.0,0.16306]
[1724272814688,0.10250765,61328.0,61327.0,0.48918]
[1724272814888,0.10250765,61328.0,61327.0,0.8153]
[1724272815087,0.23010765,61328.0,61327.0,0.48918]
[1724272815410,0.23010765,61328.0,61327.0,0.8153]
[1724272815613,0.2295,61328.0,61327.0,0.8153]
[1724272815835,0.27211911,61328.0,61327.0,4.4323]
[1724272816039,0.27211911,61328.0,61327.0,3.2593]
[1724272816234,0.27211911,61328.0,61327.0,2.7043]
[1724272816514,0.27211911,61328.0,61327.0,1.7133]
[1724272816709,0.27211911,61328.0,61327.0,0.8153]
[1724272817235,0.17021911,61328.0,61327.0,6.35542298]
[1724272817426,0.14465296,61328.0,61327.0,6.36142298]
[1724272817602,0.14465296,61328.0,61327.0,6.03530298]
[1724272817840,0.14465296,61328.0,61327.0,6.03830298]
[1724272818042,0.17154954,61328.0,61327.0,1.29230298]
[1724272818240,0.17154954,61328.0,61327.0,1.30430298]
[1724272818436,0.15449658,61328.0,61327.0,1.31630298]
[1724272818640,0.17154954,61328.0,61327.0,1.30430298]
[1724272819089,0.17154954,61328.0,61327.0,1.31730298]
[1724272819239,0.17154954,61328.0,61327.0,1.64342298]
[1724272819623,0.17154954,61328.0,61327.0,1.63142298]
[1724272819821,0.17154954,61328.0,61327.0,1.63942298]
[1724272820298,0.17154954,61328.0,61327.0,1.62642298]
[1724272820497,0.17154954,61328.0,61327.0,1.63042298]
[1724272820688,0.19794024,61328.0,61327.0,1.64442298]
[1724272820893,0.19794024,61328.0,61327.0,1.63242298]
[1724272821070,0.19794024,61328.0,61327.0,1.64642298]
[1724272825888,0.19794024,61328.0,61327.0,1.33342298]
[1724272826557,0.19794024,61328.0,61327.0,6.38342298]
[1724272827345,0.19794024,61328.0,61327.0,6.28042298]
[1724272827540,0.19794024,61328.0,61327.0,6.26942298]
[1724272827740,0.19794024,61328.0,61327.0,6.12242298]
[1724272827941,0.19794024,61328.0,61327.0,5.30842298]
[1724272828490,0.19794024,61328.0,61327.0,1.00730298]
[1724272828848,0.19794024,61328.0,61327.0,3.41130298]
[1724272829077,0.19794024,61328.0,61327.0,6.05730298]
[1724272830511,0.18088728,61328.0,61327.0,6.38342298]
[1724272833265,0.18088728,61328.0,61327.0,6.37312298]
[1724272833610,0.18088728,61328.0,61327.0,6.38342298]
[1724272834538,0.18088728,61328.0,61327.0,4.69042298]
[1724272834735,0.18088728,61328.0,61327.0,1.75942298]
[1724272834930,0.18088728,61328.0,61327.0,1.51942298]
[1724272835207,0.28409493,61328.0,61327.0,0.028]
[1724272835422,0.28409493,61328.0,61327.0,0.8433]
[1724272836072,0.28348728,61328.0,61327.0,0.8433]
[1724272836280,0.28348728,61328.0,61327.0,1.33342298]
[1724272837151,0.28348728,61328.0,61327.0,1.00730298]
[1724272837360,0.28409493,61328.0,61327.0,0.19106]
[1724272837574,0.28409493,61328.0,61327.0,0.028]
[1724272839431,0.13060765,61323.0,61322.0,0.163072]
[1724272839602,0.13060765,61323.0,61322.0,0.489219]
[1724272840247,0.15750423,61323.0,61322.0,0.489219]
[1724272840589,0.15750423,61323.0,61322.0,0.815366]
[1724272840765,0.15750423,61323.0,61322.0,0.824366]
[1724272841179,0.15750423,61323.0,61322.0,0.832366]
[1724272843547,0.26650423,61323.0,61322.0,0.180072]
[1724272845171,0.30924201,61323.0,61322.0,0.017]
[1724272845323,0.24360765,61303.0,61301.0,0.0726389]
[1724272845549,0.24360765,61303.0,61300.0,0.163132]
[1724272845550,0.134,61301.0,61300.0,0.163132]
[1724272845775,0.134,61301.0,61297.0,0.163139]
[1724272845776,0.00060765,61299.0,61297.0,0.163139]
[1724272845980,0.13460765,61297.0,61294.0,0.32805658]
[1724272846207,0.13868637,61297.0,61295.0,0.163145]
[1724272846434,0.16150423,61297.0,61296.0,0.489427]
[1724272848898,0.16250423,61297.0,61296.0,0.516427]
[1724272851170,0.16250423,61297.0,61296.0,0.190142]
[1724272851378,0.16250423,61297.0,61296.0,0.027]
[1724272851379,0.16658288,61297.0,61296.0,0.027]
[1724272851996,0.26990423,61297.0,61296.0,0.027]
[1724272852205,0.26990423,61297.0,61296.0,0.013]
[1724272852206,0.43712351,61297.0,61296.0,0.013]
[1724272852413,0.16375265,61295.0,61294.0,0.0009086]
[1724272852616,0.40575265,61295.0,61294.0,0.0009086]
[1724272852820,0.4053601,61295.0,61294.0,0.0009086]
[1724272853222,0.4053601,61295.0,61281.0,0.32636]
[1724272853223,0.163148,61294.0,61281.0,0.163181]
[1724272853432,0.2307,61292.0,61281.0,0.163181]
[1724272853633,0.1281,61289.0,61283.0,0.163176]
[1724272853833,0.1281,61289.0,61281.0,0.32636]
[1724272854039,0.1281,61287.0,61282.0,0.163178]
[1724272854209,0.1281,61287.0,61280.0,0.0009086]
[1724272854410,0.15499658,61287.0,61281.0,0.16318]
[1724272855063,0.1026,61286.0,61281.0,0.16318]
[1724272855245,0.1281,61285.0,61281.0,0.16318]
[1724272855470,0.15499658,61285.0,61281.0,0.16318]
[1724272855615,0.2309151,61282.0,61281.0,0.001]
[1724272856035,0.2309151,61282.0,61280.0,0.0009086]
[1724272856036,0.1282,61281.0,61280.0,0.0009086]
[1724272856443,0.15509658,61281.0,61280.0,0.0009086]
[1724272856815,0.15509658,61281.0,61279.0,0.172273]
[1724272856816,0.15509658,61281.0,61279.0,0.1542776]
[1724272857205,0.15509658,61281.0,61280.0,0.006]
[1724272857617,0.15509658,61281.0,61280.0,0.169185]
[1724272858244,0.15509658,61281.0,61280.0,0.006]
[1724272858446,0.15509658,61281.0,61280.0,0.004]
[1724272858595,0.15509658,61281.0,61278.0,0.1640976]
[1724272858825,0.15509658,61281.0,61279.0,0.166186]
[1724272858983,0.15509658,61281.0,61280.0,0.163185]
[1724272859360,0.1284151,61279.0,61278.0,0.0009086]
[1724272860177,0.25500064,61279.0,61278.0,0.0009086]
[1724272860500,0.28597732,61279.0,61278.0,0.0009086]
[1724272861573,0.28597732,61279.0,61278.0,0.0039086]
[1724272861773,0.28797732,61279.0,61278.0,0.0039086]
[1724272861981,0.28389722,61279.0,61278.0,0.0009086]
[1724272862390,0.28589722,61279.0,61278.0,0.0009086]
[1724272862615,0.28389722,61279.0,61278.0,0.0009086]
[1724272862769,0.28189722,61279.0,61278.0,0.0009086]
[1724272863170,0.28589722,61279.0,61278.0,0.0009086]
[1724272864151,0.28989722,61279.0,61278.0,0.0009086]
[1724272864585,0.28189722,61279.0,61278.0,0.0009086]
[1724272864810,0.28589722,61279.0,61278.0,0.0009086]
[1724272868904,0.28589722,61279.0,61278.0,0.1640986]
[1724272869784,0.28589722,61279.0,61278.0,0.4904796]
[1724272869942,0.18468212,61279.0,61278.0,1.63362558]
[1724272870173,0.03089658,61279.0,61278.0,1.73362558]
[1724272870376,0.03089658,61279.0,61278.0,6.78362558]
[1724272870831,0.16509658,61279.0,61278.0,2.95024458]
[1724272870976,0.16309658,61279.0,61278.0,2.24194458]
[1724272871177,0.16309658,61279.0,61278.0,2.17694458]
[1724272871178,0.16109658,61279.0,61278.0,2.17694458]
[1724272871434,0.16109658,61279.0,61278.0,2.18694458]
[1724272871583,0.16109658,61279.0,61278.0,1.85556358]
[1724272871990,0.16209658,61279.0,61278.0,1.77356358]
[1724272872166,0.16209658,61279.0,61278.0,1.76756358]
[1724272872613,0.16209658,61279.0,61278.0,1.74056358]
[1724272872814,0.16109658,61279.0,61278.0,1.69556358]
[1724272873012,0.16209658,61279.0,61278.0,1.70356358]
[1724272873267,0.18768209,61279.0,61278.0,1.70356358]
[1724272873815,0.18768209,61279.0,61278.0,1.42356358]
[1724272874620,0.18868209,61279.0,61278.0,1.43156358]
[1724272875038,0.18789719,61279.0,61278.0,0.6067986]
[1724272875236,0.18889719,61279.0,61278.0,0.4647986]
[1724272876268,0.18889719,61279.0,61278.0,0.0169086]
[1724272876475,0.20595015,61279.0,61278.0,0.0169086]
[1724272877919,0.20595015,61279.0,61278.0,0.4647986]
[1724272878118,0.20595015,61279.0,61278.0,0.7911796]
[1724272878811,0.20595015,61279.0,61278.0,0.4647986]
[1724272878952,0.20595015,61279.0,61278.0,0.0169086]
[1724272882727,0.27132015,61279.0,61278.0,0.0169086]
[1724272883531,0.37792015,61279.0,61278.0,0.0169086]
[1724272888039,0.37792015,61279.0,61278.0,0.5064796]
[1724272888242,0.37792015,61279.0,61278.0,0.99686358]
[1724272888243,0.20573505,61279.0,61278.0,0.99686358]
[1724272890907,0.20573505,61279.0,61278.0,1.86586358]
[1724272892135,0.20573505,61279.0,61278.0,1.53948258]
[1724272892349,0.20573505,61279.0,61278.0,1.17748258]
[1724272892695,0.20573505,61279.0,61278.0,1.09548258]
[1724272893962,0.20595015,61279.0,61278.0,2.2759086]
[1724272894186,0.20595015,61279.0,61278.0,4.8059086]
[1724272894391,0.20595015,61279.0,61278.0,4.0469086]
[1724272895038,0.20573505,61279.0,61278.0,4.0469086]
[1724272895216,0.20595015,61279.0,61278.0,4.0469086]
[1724272895577,0.20573505,61279.0,61278.0,4.53729258]
[1724272895779,0.20573505,61279.0,61278.0,4.70048258]
[1724272895961,0.20573505,61279.0,61278.0,5.31156358]
[1724272896788,0.20595015,61279.0,61278.0,4.4947986]
[1724272896991,0.20595015,61279.0,61278.0,1.3190986]
[1724272897721,0.20595015,61279.0,61278.0,1.3050986]
[1724272900384,0.20595015,61279.0,61278.0,1.6314796]
[1724272900629,0.20573505,61279.0,61278.0,1.6314796]
[1724272900936,0.20573505,61279.0,61278.0,2.12186358]
[1724272901723,0.18014954,61279.0,61278.0,2.12186358]
[1724272902691,0.18014954,61279.0,61278.0,2.44824458]
[1724272902948,0.01976075,61280.0,61278.0,1.40591158]
[1724272903153,0.1248,61291.0,61290.0,0.326317]
[1724272903361,0.1248,61291.0,61290.0,1.59081198]
[1724272903552,0.1248,61291.0,61290.0,5.77181198]
[1724272903771,0.1248,61291.0,61290.0,6.64081198]
[1724272904917,0.15138059,61291.0,61290.0,6.65081198]
[1724272905863,0.15138059,61291.0,61290.0,6.65981198]
[1724272906064,0.15138059,61291.0,61290.0,6.98612898]
[1724272906497,0.15138059,61291.0,61290.0,7.08612898]
[1724272907562,0.02658059,61291.0,61290.0,7.08612898]
[1724272908318,0.02658059,61291.0,61290.0,7.08891388]
[1724272908500,0.02658059,61291.0,61290.0,7.16866774]
[1724272908501,0.001,61291.0,61290.0,7.16866774]
[1724272908703,0.001,61291.0,61290.0,7.17066774]
[1724272908906,0.001,61291.0,61290.0,6.88196504]
[1724272909101,0.001,61291.0,61290.0,6.83318334]
[1724272909298,0.001,61291.0,61290.0,6.81418334]
[1724272909583,0.1295,61292.0,61291.0,1.4691889]
[1724272909716,0.1295,61292.0,61291.0,6.80619188]
[1724272910704,0.1295,61292.0,61291.0,6.82019188]
[1724272910855,0.1295,61292.0,61291.0,6.83419188]
[1724272912733,0.1295,61292.0,61291.0,4.32609498]
[1724272912939,0.1295,61292.0,61291.0,3.18878298]
[1724272913898,0.1295,61292.0,61291.0,3.51509498]
[1724272914160,0.1295,61292.0,61291.0,3.18878298]
[1724272914544,0.1295,61292.0,61291.0,3.51509498]
[1724272915090,0.1295,61292.0,61291.0,3.18878298]
[1724272915476,0.15507844,61292.0,61291.0,3.51509498]
[1724272915714,0.15507844,61292.0,61291.0,3.18878298]
[1724272915897,0.15507844,61292.0,61291.0,3.51509498]
[1724272921350,0.26257844,61292.0,61291.0,3.42409498]
[1724272921565,0.26257844,61292.0,61291.0,2.94578298]
[1724272921785,0.42594654,61292.0,61291.0,0.028]
[1724272922242,0.26279354,61292.0,61291.0,0.028]
[1724272922717,0.26279354,61292.0,61291.0,0.014]
[1724272922924,0.26379354,61292.0,61291.0,0.015]
[1724272923126,0.26379354,61292.0,61291.0,0.001]
[1724272923548,0.42694654,61292.0,61291.0,0.002]
[1724272923755,0.42694654,61292.0,61291.0,0.001]
[1724272923756,0.26379354,61292.0,61291.0,0.001]
[1724272923967,0.1276151,61282.0,61281.0,0.489545]
[1724272924645,0.25629893,61282.0,61281.0,0.489545]
[1724272925628,0.25629893,61282.0,61281.0,0.163182]
[1724272926027,0.25629893,61282.0,61281.0,0.164182]
[1724272926210,0.25629893,61282.0,61281.0,0.490547]
[1724272926815,0.25629893,61282.0,61281.0,5.867912]
[1724272927414,0.25608383,61282.0,61281.0,5.866912]
[1724272927619,0.25608383,61282.0,61281.0,6.31627998]
[1724272927864,0.15298383,61282.0,61281.0,5.65827998]
[1724272928244,0.15298383,61282.0,61281.0,5.65727998]
[1724272928656,0.15298383,61282.0,61281.0,5.66027998]
[1724272929260,0.15298383,61282.0,61281.0,5.65727998]
[1724272929463,0.15298383,61282.0,61281.0,3.83927998]
[1724272929640,0.15298383,61282.0,61281.0,3.83727998]
[1724272930035,0.15298383,61282.0,61281.0,3.84527998]
[1724272931942,0.15298383,61282.0,61281.0,3.51891498]
[1724272932957,0.15298383,61282.0,61281.0,1.64191498]
[1724272936056,0.15298383,61282.0,61281.0,1.96827998]
[1724272939677,0.15298383,61282.0,61281.0,1.64191498]
[1724272940522,0.25209893,61282.0,61281.0,0.016]
[1724272941989,0.41527893,61282.0,61281.0,0.016]
[1724272942191,0.74163893,61282.0,61281.0,0.016]
[1724272942765,1.06799893,61282.0,61281.0,0.016]
[1724272942976,1.06799893,61282.0,61281.0,0.008]
[1724272942977,1.06899893,61282.0,61281.0,0.008]
[1724272943174,0.1633971,61281.0,61280.0,0.0009086]
[1724272943527,0.70244246,61281.0,61280.0,0.0009086]
[1724272944356,0.70444246,61281.0,61280.0,0.0009086]
[1724272944577,0.2108151,61281.0,61280.0,0.0009086]
[1724272944988,0.2106,61281.0,61280.0,0.65446658]
[1724272945197,0.1117,61281.0,61280.0,0.98083658]
[1724272945660,0.1117,61281.0,61280.0,6.03083658]
[1724272945911,0.1117,61281.0,61280.0,6.03876609]
[1724272946312,0.1117,61281.0,61280.0,6.36513609]
[1724272946516,0.1117,61281.0,61280.0,6.36813609]
[1724272946719,0.1097,61281.0,61280.0,6.36813609]
[1724272946922,0.1099151,61281.0,61280.0,0.1670936]
[1724272947126,0.2108151,61281.0,61280.0,0.0039086]
[1724272947351,0.2108151,61281.0,61280.0,0.0009086]
[1724272947526,0.2088151,61281.0,61280.0,0.0009086]
[1724272947734,0.2088151,61281.0,61280.0,0.1670936]
[1724272947905,0.2088151,61281.0,61280.0,0.1760936]
[1724272948269,0.20842229,61281.0,61280.0,0.1670936]
[1724272948687,0.20842229,61281.0,61280.0,0.1710936]
[1724272948890,0.20842229,61281.0,61280.0,0.4944636]
[1724272949287,0.20820719,61281.0,61280.0,4.5214636]
[1724272949488,0.20820719,61281.0,61280.0,3.2354636]
[1724272949699,0.20820719,61281.0,61280.0,3.39946658]
[1724272949900,0.20820719,61281.0,61280.0,3.72583658]
[1724272950480,0.20820719,61281.0,61280.0,4.05220658]
[1724272951703,0.20820719,61281.0,61280.0,4.06039754]
[1724272952646,0.20820719,61281.0,61280.0,1.46739754]
[1724272952846,0.20820719,61281.0,61280.0,0.9688336]
[1724272952847,0.20842229,61281.0,61280.0,0.9688336]
[1724272953145,0.20842229,61281.0,61280.0,0.6424636]
[1724272954579,0.20842229,61281.0,61280.0,0.1710936]
[1724272954818,0.20842229,61281.0,61280.0,0.0079086]
[1724272954993,0.37160429,61281.0,61280.0,0.0079086]
[1724272956045,0.37160429,61281.0,61280.0,0.0049086]
[1724272956516,0.0002151,61268.0,61266.0,0.00022848]
[1724272956646,0.1073151,61268.0,61267.0,0.172306]
[1724272956853,0.1961151,61268.0,61267.0,0.009086]
[1724272958101,0.1961151,61268.0,61267.0,0.172306]
[1724272958506,0.1961151,61268.0,61267.0,0.174306]
[1724272958707,0.1959,61268.0,61267.0,0.66374898]
[1724272959104,0.1959,61268.0,61267.0,0.66474898]
[1724272959467,0.1961151,61268.0,61267.0,0.011086]
[1724272962592,0.1961151,61268.0,61267.0,0.174306]
[1724272963232,0.1961151,61268.0,61267.0,0.011086]
[1724272964086,0.1961151,61268.0,61267.0,0.174306]
[1724272965348,0.1961151,61268.0,61267.0,0.173306]
[1724272965762,0.1961151,61268.0,61267.0,0.172306]
[1724272966275,0.1959,61268.0,61267.0,0.498746]
[1724272966495,0.1071,61268.0,61267.0,1.60032898]
[1724272966669,0.1071,61268.0,61267.0,6.75032898]
[1724272967508,0.1071,61268.0,61267.0,6.75855025]
[1724272968070,0.1071,61268.0,61267.0,2.52755025]
[1724272968296,0.1071,61268.0,61267.0,2.53855025]
[1724272968501,0.1071,61268.0,61267.0,1.71955025]
[1724272968704,0.1071,61268.0,61267.0,6.72255025]
[1724272968932,0.1071,61268.0,61267.0,6.72555025]
[1724272969155,0.1071,61268.0,61267.0,6.54555025]
[1724272969353,0.1071,61268.0,61267.0,5.43455025]
[1724272969755,0.1071,61268.0,61267.0,5.44555025]
[1724272970352,0.1071,61268.0,61267.0,4.54055025]
[1724272970889,0.1071,61268.0,61267.0,4.25585025]
[1724272971420,0.1885151,61268.0,61267.0,0.294306]
[1724272971623,0.1883,61268.0,61267.0,0.294306]
[1724272971896,0.1885151,61268.0,61267.0,0.620746]
[1724272974849,0.1885151,61268.0,61267.0,0.031086]
[1724272975791,0.1885151,61268.0,61267.0,0.020086]
[1724272976208,0.1885151,61268.0,61267.0,0.014086]
[1724272976399,0.1885151,61268.0,61267.0,0.019086]
[1724272976600,0.1885151,61268.0,61267.0,0.182306]
[1724272978010,0.1885151,61268.0,61267.0,0.835186]
[1724272978314,0.1071,61268.0,61267.0,6.04918898]
[1724272978514,0.1071,61268.0,61267.0,6.47562898]
[1724272980723,0.1071,61268.0,61267.0,6.81215104]
[1724272981003,0.1071,61268.0,61267.0,6.86098675]
[1724272981271,0.1071,61268.0,61267.0,6.53274675]
[1724272981526,0.1071,61268.0,61267.0,6.48391104]
[1724272981722,0.1071,61268.0,61267.0,6.80535104]
[1724272981922,0.1071,61268.0,61267.0,6.80035104]
[1724272982142,0.000826,61271.0,61270.0,1.1432689]
[1724272982356,0.000826,61271.0,61270.0,7.54516365]